[Event "Early-Titled-Tuesday-Blitz-January-30-2024"]
[Site "Chess.com"]
[Date "2024.01.30"]
[Round "9"]
[White "LuisFSiles"]
[Black "EsmeraldasAnderson03"]
[Result "1-0"]
[WhiteElo "2259"]
[BlackElo "2397"]
[TimeControl "180+1"]
[EndTime "9:47:12 PST"]
[Termination "LuisFSiles won by resignation"]

1. e4 {[%clk 0:03:00.9]} 1... c5 {[%clk 0:02:59.6]} 2. Nf3 {[%clk 0:03:00.4]}
2... d6 {[%clk 0:03:00.2]} 3. Bb5+ {[%clk 0:02:59.9]} 3... Bd7 {[%clk
0:03:00.1]} 4. Bxd7+ {[%clk 0:02:59.9]} 4... Qxd7 {[%clk 0:03:01]} 5. O-O {[%clk
0:03:00]} 5... Nf6 {[%clk 0:03:01.5]} 6. Re1 {[%clk 0:03:00.1]} 6... Nc6 {[%clk
0:03:00.9]} 7. c3 {[%clk 0:03:00.4]} 7... e6 {[%clk 0:02:59.9]} 8. d4 {[%clk
0:03:00]} 8... cxd4 {[%clk 0:03:00.8]} 9. cxd4 {[%clk 0:03:00]} 9... d5 {[%clk
0:03:01.3]} 10. e5 {[%clk 0:03:00]} 10... Ne4 {[%clk 0:03:01.8]} 11. Nbd2 {[%clk
0:02:59.8]} 11... Nxd2 {[%clk 0:03:00.7]} 12. Bxd2 {[%clk 0:02:59.8]} 12... Be7
{[%clk 0:03:01.5]} 13. Rc1 {[%clk 0:02:56.9]} 13... O-O {[%clk 0:03:01.5]} 14.
Rc3 {[%clk 0:02:54.9]} 14... Rac8 {[%clk 0:02:56.4]} 15. Rd3 {[%clk 0:02:54.3]}
15... Nb4 {[%clk 0:02:53.1]} 16. Rb3 {[%clk 0:02:26.9]} 16... a5 {[%clk
0:02:46.9]} 17. a3 {[%clk 0:02:25.9]} 17... Nc6 {[%clk 0:02:17.5]} 18. h4 {[%clk
0:02:14.5]} 18... a4 {[%clk 0:02:07.3]} 19. Rd3 {[%clk 0:02:12.4]} 19... b5
{[%clk 0:02:07.4]} 20. Ng5 {[%clk 0:02:07.8]} 20... h6 {[%clk 0:02:06.5]} 21.
Nh3 {[%clk 0:02:07.3]} 21... Bxh4 {[%clk 0:01:42.8]} 22. Qh5 {[%clk 0:02:03.7]}
22... Qd8 {[%clk 0:01:40.6]} 23. Bxh6 {[%clk 0:01:46.6]} 23... gxh6 {[%clk
0:01:34]} 24. Qxh6 {[%clk 0:01:44.2]} 24... Rc7 {[%clk 0:01:29.8]} 25. Ree3
{[%clk 0:01:31.5]} 25... f6 {[%clk 0:01:23]} 26. Qxh4 {[%clk 0:01:06.3]} 26...
Rg7 {[%clk 0:01:22.9]} 27. Rg3 {[%clk 0:00:57.4]} 27... Rf7 {[%clk 0:01:19.1]}
28. Rxg7+ {[%clk 0:00:57.1]} 28... Rxg7 {[%clk 0:01:15.7]} 29. exf6 {[%clk
0:00:56.5]} 29... Rg6 {[%clk 0:01:16.2]} 30. Rg3 {[%clk 0:00:44.1]} 30... Qe8
{[%clk 0:01:10.7]} 31. Nf4 {[%clk 0:00:40.4]} 1-0

[Event "Early-Titled-Tuesday-Blitz-January-30-2024"]
[Site "Chess.com"]
[Date "2024.01.30"]
[Round "9"]
[White "DavidGavrilescu18"]
[Black "dennisodessa"]
[Result "1-0"]
[WhiteElo "2800"]
[BlackElo "2614"]
[TimeControl "180+1"]
[EndTime "9:47:13 PST"]
[Termination "DavidGavrilescu18 won by resignation"]

1. e4 {[%clk 0:03:00.9]} 1... e6 {[%clk 0:03:00.2]} 2. d4 {[%clk 0:03:00.7]}
2... d5 {[%clk 0:03:00.8]} 3. e5 {[%clk 0:03:01.3]} 3... c5 {[%clk 0:03:00.6]}
4. c3 {[%clk 0:03:01.6]} 4... Qa5 {[%clk 0:02:59.8]} 5. Nf3 {[%clk 0:02:56.9]}
5... cxd4 {[%clk 0:02:59.5]} 6. Nxd4 {[%clk 0:02:55.2]} 6... Nc6 {[%clk
0:03:00.1]} 7. Bf4 {[%clk 0:02:52.8]} 7... Nge7 {[%clk 0:02:54.2]} 8. Nxc6
{[%clk 0:02:47.7]} 8... Nxc6 {[%clk 0:02:55.1]} 9. Bd3 {[%clk 0:02:46.8]} 9...
Qc7 {[%clk 0:02:45]} 10. O-O {[%clk 0:02:46.3]} 10... Nxe5 {[%clk 0:02:41.7]}
11. Bb5+ {[%clk 0:02:45.3]} 11... Bd7 {[%clk 0:02:39.2]} 12. Bxd7+ {[%clk
0:02:45.4]} 12... Kxd7 {[%clk 0:02:38.9]} 13. c4 {[%clk 0:02:45.9]} 13... Bd6
{[%clk 0:01:57.1]} 14. cxd5 {[%clk 0:02:45.2]} 14... Ke7 {[%clk 0:01:40.7]} 15.
Nc3 {[%clk 0:02:40.9]} 15... Nf3+ {[%clk 0:01:20.5]} 16. Qxf3 {[%clk 0:02:40.6]}
16... Bxf4 {[%clk 0:01:21.4]} 17. dxe6 {[%clk 0:02:40.1]} 17... fxe6 {[%clk
0:01:22.3]} 18. Rfe1 {[%clk 0:02:40.4]} 18... Bxh2+ {[%clk 0:01:17]} 19. Kh1
{[%clk 0:02:39.9]} 19... Be5 {[%clk 0:01:17.9]} 20. Nb5 {[%clk 0:02:06.4]} 20...
Qc5 {[%clk 0:01:10.7]} 21. Qxb7+ {[%clk 0:01:53.4]} 21... Kf6 {[%clk 0:01:10.8]}
22. Qf3+ {[%clk 0:01:51.7]} 22... Kg6 {[%clk 0:01:11]} 23. Qd3+ {[%clk
0:01:41.6]} 23... Kf6 {[%clk 0:01:02.3]} 24. Rac1 {[%clk 0:01:40.6]} 24... Qd5
{[%clk 0:00:59.8]} 25. Qe2 {[%clk 0:01:03.8]} 25... Rab8 {[%clk 0:00:54.8]} 26.
a4 {[%clk 0:01:02.3]} 26... a6 {[%clk 0:00:46.6]} 27. Rcd1 {[%clk 0:01:00.5]}
27... Qc5 {[%clk 0:00:39.3]} 28. b4 {[%clk 0:01:00.3]} 1-0

[Event "Early-Titled-Tuesday-Blitz-January-30-2024"]
[Site "Chess.com"]
[Date "2024.01.30"]
[Round "9"]
[White "carloseduar100"]
[Black "whitemirrorninja"]
[Result "0-1"]
[WhiteElo "2293"]
[BlackElo "2474"]
[TimeControl "180+1"]
[EndTime "9:47:15 PST"]
[Termination "whitemirrorninja won by checkmate"]

1. e4 {[%clk 0:03:00.4]} 1... c5 {[%clk 0:02:58.3]} 2. Nf3 {[%clk 0:03:00.4]}
2... a6 {[%clk 0:02:56.5]} 3. g3 {[%clk 0:03:00.2]} 3... b6 {[%clk 0:02:55.8]}
4. Bg2 {[%clk 0:03:00.6]} 4... Bb7 {[%clk 0:02:56.6]} 5. Nc3 {[%clk 0:03:00.6]}
5... e6 {[%clk 0:02:57.3]} 6. O-O {[%clk 0:03:00.8]} 6... Nc6 {[%clk 0:02:57.5]}
7. Re1 {[%clk 0:03:01.2]} 7... g6 {[%clk 0:02:56.5]} 8. d4 {[%clk 0:03:01.5]}
8... cxd4 {[%clk 0:02:57.4]} 9. Nxd4 {[%clk 0:03:02.1]} 9... Bg7 {[%clk
0:02:58.1]} 10. Be3 {[%clk 0:02:58.6]} 10... Nge7 {[%clk 0:02:57.9]} 11. Qd2
{[%clk 0:02:58.7]} 11... O-O {[%clk 0:02:57.5]} 12. Rad1 {[%clk 0:02:58.9]}
12... Rc8 {[%clk 0:02:49.7]} 13. a3 {[%clk 0:02:59]} 13... Qc7 {[%clk
0:02:48.3]} 14. Nf3 {[%clk 0:02:51.5]} 14... Rfd8 {[%clk 0:02:39.8]} 15. Bh6
{[%clk 0:02:50.5]} 15... Bh8 {[%clk 0:02:36.4]} 16. e5 {[%clk 0:02:46.1]} 16...
Nxe5 {[%clk 0:02:28.4]} 17. Bf4 {[%clk 0:02:40.8]} 17... d6 {[%clk 0:02:15.2]}
18. Bxe5 {[%clk 0:02:34.9]} 18... dxe5 {[%clk 0:02:14.2]} 19. Qe3 {[%clk
0:02:35.2]} 19... Nf5 {[%clk 0:02:08]} 20. Qg5 {[%clk 0:02:31.8]} 20... Bxf3
{[%clk 0:01:57.7]} 21. Bxf3 {[%clk 0:02:30.9]} 21... Nd4 {[%clk 0:01:53.2]} 22.
Be4 {[%clk 0:02:28.8]} 22... f5 {[%clk 0:01:48.8]} 23. Bg2 {[%clk 0:02:14]}
23... Nxc2 {[%clk 0:01:49.1]} 24. Rxd8+ {[%clk 0:02:12.5]} 24... Qxd8 {[%clk
0:01:46]} 25. Qxd8+ {[%clk 0:02:05.1]} 25... Rxd8 {[%clk 0:01:46.9]} 26. Rc1
{[%clk 0:02:01.3]} 26... Nd4 {[%clk 0:01:43.1]} 27. h4 {[%clk 0:02:01.3]} 27...
e4 {[%clk 0:01:42.6]} 28. Kh2 {[%clk 0:01:53.5]} 28... Nb3 {[%clk 0:01:32.4]}
29. Rc2 {[%clk 0:01:48.8]} 29... Rc8 {[%clk 0:01:29.6]} 30. Bf1 {[%clk
0:01:45.5]} 30... b5 {[%clk 0:01:13.3]} 31. Re2 {[%clk 0:01:32.8]} 31... Bxc3
{[%clk 0:01:10]} 32. bxc3 {[%clk 0:01:33.7]} 32... Rxc3 {[%clk 0:01:10.2]} 33.
Ra2 {[%clk 0:01:28.4]} 33... Nd4 {[%clk 0:00:59.8]} 34. a4 {[%clk 0:01:27.2]}
34... b4 {[%clk 0:01:00.5]} 35. Bxa6 {[%clk 0:01:27.2]} 35... b3 {[%clk
0:01:01.1]} 36. Rb2 {[%clk 0:01:26.6]} 36... Rc2 {[%clk 0:01:00]} 37. Rb1 {[%clk
0:01:25]} 37... Rxf2+ {[%clk 0:00:59.6]} 38. Kh3 {[%clk 0:01:23.2]} 38... Nf3
{[%clk 0:00:56.7]} 39. g4 {[%clk 0:01:23.3]} 39... f4 {[%clk 0:00:56.3]} 40. g5
{[%clk 0:01:23.4]} 40... e5 {[%clk 0:00:48.6]} 41. Rxb3 {[%clk 0:01:20.6]} 41...
Rh2+ {[%clk 0:00:48.7]} 42. Kg4 {[%clk 0:01:18.3]} 42... Rg2+ {[%clk 0:00:49.6]}
43. Kh3 {[%clk 0:01:18.5]} 43... Rg3# {[%clk 0:00:50.5]} 0-1

[Event "Early-Titled-Tuesday-Blitz-January-30-2024"]
[Site "Chess.com"]
[Date "2024.01.30"]
[Round "9"]
[White "ValentunHulka"]
[Black "blitis"]
[Result "1-0"]
[WhiteElo "2795"]
[BlackElo "2609"]
[TimeControl "180+1"]
[EndTime "9:47:19 PST"]
[Termination "ValentunHulka won by resignation"]

1. c4 {[%clk 0:03:00.9]} 1... f5 {[%clk 0:02:59.2]} 2. d4 {[%clk 0:03:00.5]}
2... Nf6 {[%clk 0:02:58.2]} 3. Nc3 {[%clk 0:03:01]} 3... g6 {[%clk 0:02:58.7]}
4. h4 {[%clk 0:03:00.9]} 4... h6 {[%clk 0:02:53.7]} 5. h5 {[%clk 0:02:52.1]}
5... g5 {[%clk 0:02:53.7]} 6. e4 {[%clk 0:02:43.7]} 6... fxe4 {[%clk 0:02:52.7]}
7. Qc2 {[%clk 0:02:41.9]} 7... e6 {[%clk 0:02:34.4]} 8. Nxe4 {[%clk 0:02:37.5]}
8... Bb4+ {[%clk 0:02:34.2]} 9. Bd2 {[%clk 0:02:37.9]} 9... Bxd2+ {[%clk
0:02:30.3]} 10. Nxd2 {[%clk 0:02:37.8]} 10... Qe7 {[%clk 0:02:22.6]} 11. Ngf3
{[%clk 0:02:35.8]} 11... Nc6 {[%clk 0:02:21.9]} 12. O-O-O {[%clk 0:02:31.7]}
12... b5 {[%clk 0:02:02.3]} 13. Ne5 {[%clk 0:02:17.1]} 13... Nxd4 {[%clk
0:01:16.5]} 14. Qg6+ {[%clk 0:02:16.7]} 14... Kf8 {[%clk 0:01:15]} 15. Qd3
{[%clk 0:02:17.3]} 15... Qc5 {[%clk 0:01:07.2]} 16. Ng6+ {[%clk 0:02:15.2]}
16... Kg7 {[%clk 0:01:04.8]} 17. Nxh8 {[%clk 0:02:15.8]} 17... Kxh8 {[%clk
0:01:04.9]} 18. Ne4 {[%clk 0:02:11.4]} 18... Nxe4 {[%clk 0:01:03.8]} 19. Qxe4
{[%clk 0:02:08.8]} 19... Nc6 {[%clk 0:00:51.2]} 20. Bd3 {[%clk 0:02:08.9]} 20...
Qf5 {[%clk 0:00:33.2]} 21. Qxf5 {[%clk 0:02:08.4]} 21... exf5 {[%clk 0:00:33.3]}
22. Bxf5 {[%clk 0:02:09.3]} 22... d6 {[%clk 0:00:29.2]} 23. Be4 {[%clk
0:02:07.5]} 23... Bb7 {[%clk 0:00:25.1]} 24. cxb5 {[%clk 0:02:07.7]} 24... Na5
{[%clk 0:00:25.4]} 25. Rhe1 {[%clk 0:02:05.6]} 25... Rf8 {[%clk 0:00:24.4]} 26.
f3 {[%clk 0:02:04]} 26... Bc8 {[%clk 0:00:22.3]} 27. Bg6 {[%clk 0:02:00.2]}
27... Nc4 {[%clk 0:00:18.2]} 28. Re7 {[%clk 0:01:58.3]} 28... g4 {[%clk
0:00:16.4]} 29. Rxc7 {[%clk 0:01:52.6]} 29... Ne3 {[%clk 0:00:16.6]} 30. Rxd6
{[%clk 0:01:42.4]} 30... Nxg2 {[%clk 0:00:15.9]} 31. fxg4 {[%clk 0:01:41.4]}
31... Bxg4 {[%clk 0:00:15.3]} 32. Be4 {[%clk 0:01:37.5]} 32... Rf1+ {[%clk
0:00:12.1]} 33. Kc2 {[%clk 0:01:37.6]} 33... Rf2+ {[%clk 0:00:12.2]} 34. Kb3
{[%clk 0:01:33.4]} 1-0

[Event "Early-Titled-Tuesday-Blitz-January-30-2024"]
[Site "Chess.com"]
[Date "2024.01.30"]
[Round "9"]
[White "vladgoncharov"]
[Black "LimeInTheCoconut"]
[Result "1-0"]
[WhiteElo "2644"]
[BlackElo "2477"]
[TimeControl "180+1"]
[EndTime "9:47:35 PST"]
[Termination "vladgoncharov won on time"]

1. d4 {[%clk 0:03:00.9]} 1... d5 {[%clk 0:02:56.2]} 2. c4 {[%clk 0:03:00.6]}
2... e6 {[%clk 0:02:55.9]} 3. Nc3 {[%clk 0:03:00]} 3... Bb4 {[%clk 0:02:56.4]}
4. e3 {[%clk 0:02:55.8]} 4... Nf6 {[%clk 0:02:50]} 5. Bd3 {[%clk 0:02:55.2]}
5... dxc4 {[%clk 0:02:44.7]} 6. Bxc4 {[%clk 0:02:54]} 6... O-O {[%clk 0:02:41]}
7. Nf3 {[%clk 0:02:53.1]} 7... b6 {[%clk 0:02:40.3]} 8. O-O {[%clk 0:02:49]}
8... Bb7 {[%clk 0:02:39.2]} 9. Qe2 {[%clk 0:02:44]} 9... Nbd7 {[%clk 0:02:30.5]}
10. a3 {[%clk 0:02:43.5]} 10... Bxc3 {[%clk 0:02:28.4]} 11. bxc3 {[%clk
0:02:44.4]} 11... c5 {[%clk 0:02:24.7]} 12. Nd2 {[%clk 0:02:35.4]} 12... Qc7
{[%clk 0:02:20.1]} 13. f3 {[%clk 0:02:32.6]} 13... e5 {[%clk 0:02:16.9]} 14. Bb2
{[%clk 0:02:26.8]} 14... Rfe8 {[%clk 0:02:16.2]} 15. e4 {[%clk 0:02:23.4]} 15...
Rad8 {[%clk 0:01:41.6]} 16. d5 {[%clk 0:02:19.9]} 16... Rf8 {[%clk 0:01:31.6]}
17. a4 {[%clk 0:02:16.7]} 17... Ne8 {[%clk 0:01:30]} 18. a5 {[%clk 0:02:16]}
18... Nd6 {[%clk 0:01:20.3]} 19. Bd3 {[%clk 0:02:11.9]} 19... b5 {[%clk
0:00:50.5]} 20. c4 {[%clk 0:02:08.2]} 20... bxc4 {[%clk 0:00:38.9]} 21. Nxc4
{[%clk 0:02:06.6]} 21... Nxc4 {[%clk 0:00:22.9]} 22. Bxc4 {[%clk 0:02:06]} 22...
Rb8 {[%clk 0:00:16.6]} 23. f4 {[%clk 0:01:58.3]} 23... exf4 {[%clk 0:00:13.3]}
24. e5 {[%clk 0:01:54.7]} 24... Rbe8 {[%clk 0:00:12.1]} 25. e6 {[%clk 0:01:42]}
25... Qd6 {[%clk 0:00:05.9]} 26. Qh5 {[%clk 0:01:22.3]} 26... Nf6 {[%clk
0:00:02.4]} 27. Qg5 {[%clk 0:01:12.7]} 27... Bxd5 {[%clk 0:00:01.3]} 28. Bxf6
{[%clk 0:01:11.3]} 1-0

[Event "Early-Titled-Tuesday-Blitz-January-30-2024"]
[Site "Chess.com"]
[Date "2024.01.30"]
[Round "9"]
[White "chipmunknau"]
[Black "TokChess"]
[Result "1-0"]
[WhiteElo "2755"]
[BlackElo "2546"]
[TimeControl "180+1"]
[EndTime "9:47:42 PST"]
[Termination "chipmunknau won by resignation"]

1. d4 {[%clk 0:02:55]} 1... Nf6 {[%clk 0:02:59.6]} 2. Nf3 {[%clk 0:02:43.2]}
2... e6 {[%clk 0:02:59.4]} 3. g3 {[%clk 0:02:37.8]} 3... b6 {[%clk 0:03:00.3]}
4. Bg2 {[%clk 0:02:37.2]} 4... Bb7 {[%clk 0:02:57.5]} 5. O-O {[%clk 0:02:37.5]}
5... Be7 {[%clk 0:02:57]} 6. a4 {[%clk 0:02:35]} 6... a6 {[%clk 0:02:55.6]} 7.
c4 {[%clk 0:02:31.2]} 7... O-O {[%clk 0:02:53.4]} 8. Nc3 {[%clk 0:02:31.4]} 8...
Ne4 {[%clk 0:02:46.2]} 9. Bd2 {[%clk 0:02:25.5]} 9... Nxd2 {[%clk 0:02:38]} 10.
Qxd2 {[%clk 0:02:26.4]} 10... d6 {[%clk 0:02:33.4]} 11. e4 {[%clk 0:02:25.3]}
11... Nd7 {[%clk 0:02:32.1]} 12. Rfe1 {[%clk 0:02:21.7]} 12... c5 {[%clk
0:02:28.3]} 13. d5 {[%clk 0:02:20.3]} 13... exd5 {[%clk 0:01:34.2]} 14. Nxd5
{[%clk 0:02:07.6]} 14... Bxd5 {[%clk 0:01:33.2]} 15. Qxd5 {[%clk 0:02:05.7]}
15... Bf6 {[%clk 0:01:32.7]} 16. Qxd6 {[%clk 0:01:47.6]} 16... Ne5 {[%clk
0:01:24.1]} 17. Qxd8 {[%clk 0:01:31.3]} 17... Raxd8 {[%clk 0:01:11.4]} 18. a5
{[%clk 0:00:59.9]} 18... Nxf3+ {[%clk 0:01:05.7]} 19. Bxf3 {[%clk 0:01:00.8]}
19... Bxb2 {[%clk 0:01:04.7]} 20. axb6 {[%clk 0:01:01]} 20... Bxa1 {[%clk
0:00:50.9]} 21. Rxa1 {[%clk 0:01:01.9]} 21... Rd6 {[%clk 0:00:51]} 22. Rb1
{[%clk 0:01:01.3]} 22... Rb8 {[%clk 0:00:44.7]} 23. b7 {[%clk 0:01:01.5]} 23...
f6 {[%clk 0:00:24.7]} 24. e5 {[%clk 0:01:01.4]} 24... fxe5 {[%clk 0:00:25.6]}
25. Re1 {[%clk 0:01:00.5]} 25... a5 {[%clk 0:00:18.8]} 26. Rxe5 {[%clk 0:01:00]}
26... Rdd8 {[%clk 0:00:01.8]} 27. Rxc5 {[%clk 0:00:58.8]} 27... Kf7 {[%clk
0:00:01.5]} 1-0

[Event "Early-Titled-Tuesday-Blitz-January-30-2024"]
[Site "Chess.com"]
[Date "2024.01.30"]
[Round "9"]
[White "Better_Chess_Faster"]
[Black "SmirnovTimofey2000"]
[Result "1-0"]
[WhiteElo "2137"]
[BlackElo "1944"]
[TimeControl "180+1"]
[EndTime "9:47:43 PST"]
[Termination "Better_Chess_Faster won on time"]

1. d4 {[%clk 0:02:59.7]} 1... d5 {[%clk 0:02:59.2]} 2. Bf4 {[%clk 0:02:59.3]}
2... Bf5 {[%clk 0:02:57.4]} 3. e3 {[%clk 0:02:59.2]} 3... e6 {[%clk 0:02:56.3]}
4. Nf3 {[%clk 0:02:58.7]} 4... Nf6 {[%clk 0:02:55.8]} 5. Bd3 {[%clk 0:02:57.6]}
5... Ne4 {[%clk 0:02:55.6]} 6. Nbd2 {[%clk 0:02:55.4]} 6... Be7 {[%clk
0:02:55.6]} 7. O-O {[%clk 0:02:53]} 7... g5 {[%clk 0:02:55.6]} 8. Bg3 {[%clk
0:02:47.9]} 8... h5 {[%clk 0:02:54.5]} 9. h4 {[%clk 0:02:40.3]} 9... gxh4 {[%clk
0:02:16]} 10. Bh2 {[%clk 0:02:40.3]} 10... Rg8 {[%clk 0:01:57.1]} 11. Ne1 {[%clk
0:02:27.5]} 11... h3 {[%clk 0:01:49.7]} 12. Qxh5 {[%clk 0:02:10.5]} 12... hxg2
{[%clk 0:01:10]} 13. Nxg2 {[%clk 0:02:03.2]} 13... Bg4 {[%clk 0:00:35]} 14. Qh7
{[%clk 0:01:58.9]} 14... Nf6 {[%clk 0:00:29.5]} 15. Qh4 {[%clk 0:01:50.9]} 15...
Nbd7 {[%clk 0:00:16.1]} 16. f3 {[%clk 0:01:41.3]} 16... Ne4 {[%clk 0:00:05.1]}
17. Qe1 {[%clk 0:01:21]} 17... Nxd2 {[%clk 0:00:04.3]} 18. Qxd2 {[%clk
0:01:20.8]} 18... Bh5 {[%clk 0:00:04.1]} 19. Kh1 {[%clk 0:01:15.1]} 19... Nf6
{[%clk 0:00:03.8]} 20. Nf4 {[%clk 0:01:10.3]} 20... Bg6 {[%clk 0:00:02.7]} 21.
Bxg6 {[%clk 0:01:07.6]} 21... fxg6 {[%clk 0:00:03.6]} 22. Nxe6 {[%clk
0:01:07.5]} 22... Qd6 {[%clk 0:00:03.2]} 23. Bxd6 {[%clk 0:01:04.1]} 23... Bxd6
{[%clk 0:00:02.4]} 24. f4 {[%clk 0:00:55.3]} 24... Rh8+ {[%clk 0:00:02]} 25. Kg2
{[%clk 0:00:53.8]} 1-0

[Event "Early-Titled-Tuesday-Blitz-January-30-2024"]
[Site "Chess.com"]
[Date "2024.01.30"]
[Round "9"]
[White "ChessQueen"]
[Black "RichardLeyvaP"]
[Result "0-1"]
[WhiteElo "2729"]
[BlackElo "2556"]
[TimeControl "180+1"]
[EndTime "9:47:44 PST"]
[Termination "RichardLeyvaP won by resignation"]

1. d4 {[%clk 0:02:56.8]} 1... Nf6 {[%clk 0:02:57.6]} 2. c4 {[%clk 0:02:56.3]}
2... g6 {[%clk 0:02:57.8]} 3. Nc3 {[%clk 0:02:56.3]} 3... Bg7 {[%clk 0:02:58.2]}
4. e4 {[%clk 0:02:56.6]} 4... d6 {[%clk 0:02:58.7]} 5. Nf3 {[%clk 0:02:56.7]}
5... O-O {[%clk 0:02:58.5]} 6. Be2 {[%clk 0:02:57.2]} 6... Bg4 {[%clk
0:02:57.3]} 7. Be3 {[%clk 0:02:47]} 7... Nc6 {[%clk 0:02:56.4]} 8. d5 {[%clk
0:02:44.2]} 8... Bxf3 {[%clk 0:02:54.4]} 9. gxf3 {[%clk 0:02:42.8]} 9... Nb8
{[%clk 0:02:54.4]} 10. Qd2 {[%clk 0:02:41]} 10... c6 {[%clk 0:02:54.6]} 11. h4
{[%clk 0:02:34.9]} 11... cxd5 {[%clk 0:02:54.6]} 12. exd5 {[%clk 0:02:24.8]}
12... Nbd7 {[%clk 0:02:53.4]} 13. Ne4 {[%clk 0:02:24.1]} 13... a6 {[%clk
0:02:33.6]} 14. h5 {[%clk 0:02:20.7]} 14... Nxh5 {[%clk 0:02:30.6]} 15. Rxh5
{[%clk 0:02:20.3]} 15... gxh5 {[%clk 0:02:30.6]} 16. O-O-O {[%clk 0:02:19.8]}
16... Kh8 {[%clk 0:02:23.7]} 17. Rh1 {[%clk 0:02:17]} 17... Nf6 {[%clk
0:02:21.6]} 18. Nxf6 {[%clk 0:02:11.5]} 18... Bxf6 {[%clk 0:02:21.5]} 19. Rxh5
{[%clk 0:02:11.6]} 19... Rg8 {[%clk 0:02:21.1]} 20. Bd3 {[%clk 0:02:10.8]} 20...
Rg7 {[%clk 0:02:20.4]} 21. Bh6 {[%clk 0:02:04]} 21... Rg1+ {[%clk 0:02:19.6]}
22. Kc2 {[%clk 0:01:57.3]} 22... Qg8 {[%clk 0:02:15.3]} 23. Be3 {[%clk
0:01:30.1]} 23... Rg6 {[%clk 0:02:11.9]} 24. Qb4 {[%clk 0:01:16.2]} 24... b5
{[%clk 0:02:11.3]} 25. cxb5 {[%clk 0:00:58.8]} 25... axb5 {[%clk 0:02:09.1]} 26.
a3 {[%clk 0:00:58.6]} 26... Ra4 {[%clk 0:01:47.7]} 27. Qxb5 {[%clk 0:00:54.8]}
27... Ra8 {[%clk 0:01:47.6]} 28. Qd7 {[%clk 0:00:44.9]} 28... Rb8 {[%clk
0:01:26.6]} 29. b4 {[%clk 0:00:42.9]} 29... Rc8+ {[%clk 0:01:24.2]} 30. Kd2
{[%clk 0:00:42.6]} 30... Ra8 {[%clk 0:01:13.4]} 31. Bxg6 {[%clk 0:00:31.4]}
31... fxg6 {[%clk 0:01:13.2]} 32. Rh1 {[%clk 0:00:27]} 32... Qxd5+ {[%clk
0:01:12.8]} 33. Ke2 {[%clk 0:00:25.5]} 33... Qc4+ {[%clk 0:01:04]} 34. Kd1
{[%clk 0:00:25.1]} 34... Qd3+ {[%clk 0:01:00.4]} 35. Kc1 {[%clk 0:00:22.8]}
35... Qxa3+ {[%clk 0:00:57.8]} 36. Kc2 {[%clk 0:00:22.7]} 36... Qc3+ {[%clk
0:00:57.9]} 0-1

[Event "Early-Titled-Tuesday-Blitz-January-30-2024"]
[Site "Chess.com"]
[Date "2024.01.30"]
[Round "9"]
[White "sjoerd893"]
[Black "GeorgiosSouleidis"]
[Result "0-1"]
[WhiteElo "2514"]
[BlackElo "2652"]
[TimeControl "180+1"]
[EndTime "9:47:50 PST"]
[Termination "GeorgiosSouleidis won by resignation"]

1. e4 {[%clk 0:03:00.9]} 1... c5 {[%clk 0:03:00]} 2. Nf3 {[%clk 0:03:00]} 2...
e6 {[%clk 0:03:00.2]} 3. d4 {[%clk 0:03:00.4]} 3... cxd4 {[%clk 0:03:01.1]} 4.
Nxd4 {[%clk 0:03:00.5]} 4... Nf6 {[%clk 0:03:01.7]} 5. Nc3 {[%clk 0:03:00.4]}
5... Nc6 {[%clk 0:03:02.2]} 6. Nxc6 {[%clk 0:03:00.2]} 6... bxc6 {[%clk
0:03:03.1]} 7. e5 {[%clk 0:03:00.9]} 7... Nd5 {[%clk 0:03:03.5]} 8. Ne4 {[%clk
0:03:01.4]} 8... Qc7 {[%clk 0:03:03.6]} 9. f4 {[%clk 0:03:01.8]} 9... Qb6 {[%clk
0:03:04.2]} 10. c4 {[%clk 0:03:02.2]} 10... Ne3 {[%clk 0:03:04.8]} 11. Qd3
{[%clk 0:03:01.1]} 11... Bb4+ {[%clk 0:03:05.2]} 12. Ke2 {[%clk 0:02:38.2]}
12... Nxc4 {[%clk 0:03:03.7]} 13. Kf3 {[%clk 0:02:25.6]} 13... Ba6 {[%clk
0:03:01.8]} 14. Be3 {[%clk 0:02:11.3]} 14... Nxe5+ {[%clk 0:02:19.8]} 15. fxe5
{[%clk 0:02:09.9]} 15... Bxd3 {[%clk 0:02:20.1]} 16. Bxb6 {[%clk 0:01:53.9]}
16... Bxe4+ {[%clk 0:02:19.8]} 17. Kxe4 {[%clk 0:01:54.5]} 17... axb6 {[%clk
0:02:20.4]} 18. a3 {[%clk 0:01:53.8]} 18... Be7 {[%clk 0:02:15.5]} 19. Be2
{[%clk 0:01:43.4]} 19... f6 {[%clk 0:02:15.4]} 20. exf6 {[%clk 0:01:29.6]} 20...
Bxf6 {[%clk 0:02:15.1]} 21. Ra2 {[%clk 0:01:28.7]} 21... d5+ {[%clk 0:02:13.8]}
22. Ke3 {[%clk 0:01:25.9]} 22... Ke7 {[%clk 0:02:14.2]} 23. a4 {[%clk
0:01:12.3]} 23... c5 {[%clk 0:02:10.2]} 24. b3 {[%clk 0:01:11.2]} 24... Kd6
{[%clk 0:02:10.1]} 25. Bb5 {[%clk 0:01:06.6]} 25... Rhf8 {[%clk 0:02:08.5]} 26.
Rf1 {[%clk 0:00:55.6]} 26... Bd4+ {[%clk 0:02:03.1]} 27. Ke2 {[%clk 0:00:48.7]}
27... Rxf1 {[%clk 0:02:03]} 28. Kxf1 {[%clk 0:00:49.6]} 28... Rf8+ {[%clk
0:02:03]} 29. Ke1 {[%clk 0:00:49.2]} 29... e5 {[%clk 0:01:59.4]} 30. Re2 {[%clk
0:00:45.3]} 30... e4 {[%clk 0:01:57.5]} 31. Kd1 {[%clk 0:00:37.9]} 31... Bc3
{[%clk 0:01:45.5]} 32. Kc2 {[%clk 0:00:31.5]} 32... Bb4 {[%clk 0:01:45.6]} 33.
g4 {[%clk 0:00:24.7]} 33... Ke5 {[%clk 0:01:44.8]} 34. Bc6 {[%clk 0:00:19.9]}
34... Rf3 {[%clk 0:01:35]} 35. Rg2 {[%clk 0:00:17.2]} 35... g5 {[%clk
0:01:26.2]} 36. Kb2 {[%clk 0:00:14.2]} 36... h6 {[%clk 0:01:18.7]} 37. Bb5
{[%clk 0:00:09.7]} 37... d4 {[%clk 0:01:17.2]} 38. Ba6 {[%clk 0:00:07.8]} 38...
d3 {[%clk 0:01:15.8]} 39. Kc1 {[%clk 0:00:06.1]} 39... Kd4 {[%clk 0:01:16]} 40.
Kb2 {[%clk 0:00:05.7]} 40... e3 {[%clk 0:01:13.4]} 0-1